Department family,Entity,Date,Expense type,Expense area,Supplier,Transaction number,Amount,Description
Department of Health,NHS Blood and Transplant,27/03/2015,CARRIAGE INWARDS,General and Other,ABBOTT LABORATORIES LTD,1893144,119.5,Carriage charges on stores purchases
Department of Health,NHS Blood and Transplant,20/03/2015,CARRIAGE INWARDS,General and Other,VH BIO LTD,1893722,66,Carriage charges on stores purchases
Department of Health,NHS Blood and Transplant,27/03/2015,CARRIAGE INWARDS,General and Other,VH BIO LTD,1895836,66,Carriage charges on stores purchases
Department of Health,NHS Blood and Transplant,27/03/2015,CARTONS & PACKAGING,Organ Donation & Transplantation,BRANDON TRUST,1894872,28457.75,Cartons and Packaging used for transporting and storing
Department of Health,NHS Blood and Transplant,13/03/2015,MANCHESTER EYE BANK CHARGE,Diagnostic & Therapeutic Services,CENTRAL MANCHESTER UNIVERSITY HOSPITALS NHS FOUNDATION TRUST,1872173,214236,Charges for operating Eye Bank at Manchester
Department of Health,NHS Blood and Transplant,13/03/2015,MANCHESTER EYE BANK CHARGE,Organ Donation & Transplantation,CENTRAL MANCHESTER UNIVERSITY HOSPITALS NHS FOUNDATION TRUST,1892338,214236,Charges for operating Eye Bank at Manchester
Department of Health,NHS Blood and Transplant,13/03/2015,MANCHESTER EYE BANK CHARGE,Organ Donation & Transplantation,CENTRAL MANCHESTER UNIVERSITY HOSPITALS NHS FOUNDATION TRUST,1892340,214236,Charges for operating Eye Bank at Manchester
Department of Health,NHS Blood and Transplant,23/03/2015,MANCHESTER EYE BANK CHARGE,Organ Donation & Transplantation,CENTRAL MANCHESTER UNIVERSITY HOSPITALS NHS FOUNDATION TRUST,1826787,214236,Charges for operating Eye Bank at Manchester
Department of Health,NHS Blood and Transplant,31/03/2015,MANCHESTER EYE BANK CHARGE,Organ Donation & Transplantation,CENTRAL MANCHESTER UNIVERSITY HOSPITALS NHS FOUNDATION TRUST,1885963,77104,Charges for operating Eye Bank at Manchester
Department of Health,NHS Blood and Transplant,31/03/2015,MANCHESTER EYE BANK CHARGE,Organ Donation & Transplantation,CENTRAL MANCHESTER UNIVERSITY HOSPITALS NHS FOUNDATION TRUST,1891289,53145,Charges for operating Eye Bank at Manchester
Department of Health,NHS Blood and Transplant,31/03/2015,MANCHESTER EYE BANK CHARGE,Organ Donation & Transplantation,CENTRAL MANCHESTER UNIVERSITY HOSPITALS NHS FOUNDATION TRUST,1897942,32349,Charges for operating Eye Bank at Manchester
Department of Health,NHS Blood and Transplant,20/03/2015,MANCHESTER EYE BANK CHARGE,Organ Donation & Transplantation,UNIVERSITY OF BRISTOL,1891311,114593.91,Charges for operating Eye Bank at Manchester
Department of Health,NHS Blood and Transplant,20/03/2015,VEHICLE FUEL & OILS,Blood Supply: Blood Donation,ALLSTAR BUSINESS SOLUTIONS LTD,1892641,900.63,Charges for vehicle fuel
Department of Health,NHS Blood and Transplant,20/03/2015,VEHICLE FUEL & OILS,Logistics,ALLSTAR BUSINESS SOLUTIONS LTD,1892641,41515.94,Charges for vehicle fuel
Department of Health,NHS Blood and Transplant,20/03/2015,VEHICLE FUEL & OILS,Organ Donation & Transplantation,ALLSTAR BUSINESS SOLUTIONS LTD,1892641,42.98,Charges for vehicle fuel
Department of Health,NHS Blood and Transplant,31/03/2015,WATER & SEWERAGE,Estates & Facilities,OXFORD RADCLIFFE HOSPITALS NHS TRUST,1897884,3247.93,Charges relating to water and sewerage costs
Department of Health,NHS Blood and Transplant,13/03/2015,CHEMICALS & REAGENTS,Diagnostic & Therapeutic Services,GENDX,1892047,98231.04,Chemicals and Reagents used
Department of Health,NHS Blood and Transplant,27/03/2015,DIRECT CONSUMABLES,"Blood Supply: Manufacturing, Testing & Issue",ABBOTT LABORATORIES LTD,1897194,13116.39,Consumable items used primarily during normal day to day operations
Department of Health,NHS Blood and Transplant,13/03/2015,DIRECT CONSUMABLES,"Blood Supply: Manufacturing, Testing & Issue",ABBOTT LABORATORIES LTD,1893147,10251.92,Consumable items used primarily during normal day to day operations
Department of Health,NHS Blood and Transplant,10/03/2015,DIRECT CONSUMABLES,Diagnostic & Therapeutic Services,CONCESSUS S.A,1892329,43200,Consumable items used primarily during normal day to day operations
Department of Health,NHS Blood and Transplant,06/03/2015,DIRECT CONSUMABLES,"Blood Supply: Manufacturing, Testing & Issue",PAM MEDICAL SUPPLIES LIMITED,1888124,76560,Consumable items used primarily during normal day to day operations
Department of Health,NHS Blood and Transplant,13/03/2015,DIRECT CONSUMABLES,"Blood Supply: Manufacturing, Testing & Issue",PAM MEDICAL SUPPLIES LIMITED,1891412,66330,Consumable items used primarily during normal day to day operations
Department of Health,NHS Blood and Transplant,27/03/2015,DIRECT CONSUMABLES,Diagnostic & Therapeutic Services,VWR INTERNATIONAL LTD (FORMERLY MERCK),1893129,25920,Consumable items used primarily during normal day to day operations
Department of Health,NHS Blood and Transplant,13/03/2015,IT COMMUNICATIONS LINKS,Business Transformation Services,VODAFONE,1888013,138432.62,Costs of IT infrastructure communications links
Department of Health,NHS Blood and Transplant,31/03/2015,IT COMMUNICATIONS LINKS,Business Transformation Services,VODAFONE,1899326,138189.85,Costs of IT infrastructure communications links
Department of Health,NHS Blood and Transplant,20/03/2015,EQUIPMENT MAINTENANCE CONTRACT,"Blood Supply: Manufacturing, Testing & Issue",FRESENIUS KABI,1892621,22180.6,Costs of maintenance contracts on equipment
Department of Health,NHS Blood and Transplant,20/03/2015,AVERAGE COST VARIANCE,General and Other,ALLSTAR BUSINESS SOLUTIONS LTD,1892641,-0.76,Difference between Purchase Order and Supplier Invoice price for Stores items
Department of Health,NHS Blood and Transplant,19/03/2015,AVERAGE COST VARIANCE,General and Other,BIOSAFE SA,1857008,19543.2,Difference between Purchase Order and Supplier Invoice price for Stores items
Department of Health,NHS Blood and Transplant,06/03/2015,AVERAGE COST VARIANCE,General and Other,CARAT A TRADING DIVISION OF DENTSU AEGIS UK LTD,1888791,22.82,Difference between Purchase Order and Supplier Invoice price for Stores items
Department of Health,NHS Blood and Transplant,31/03/2015,AVERAGE COST VARIANCE,General and Other,HOPKINS YOUNG ELECTRICAL LTD,1899044,0.04,Difference between Purchase Order and Supplier Invoice price for Stores items
Department of Health,NHS Blood and Transplant,27/03/2015,AVERAGE COST VARIANCE,General and Other,LEASEPLAN UK LTD,1897220,-0.01,Difference between Purchase Order and Supplier Invoice price for Stores items
Department of Health,NHS Blood and Transplant,20/03/2015,AVERAGE COST VARIANCE,General and Other,MMM MEDICAL EQUIPMENT (UK) LTD,1895155,-0.01,Difference between Purchase Order and Supplier Invoice price for Stores items
Department of Health,NHS Blood and Transplant,27/03/2015,AVERAGE COST VARIANCE,General and Other,NEXTRASOFT LIMITED,1897793,8898,Difference between Purchase Order and Supplier Invoice price for Stores items
Department of Health,NHS Blood and Transplant,27/03/2015,AVERAGE COST VARIANCE,General and Other,REGENT CLEANING SERVICES,1894886,-259.36,Difference between Purchase Order and Supplier Invoice price for Stores items
Department of Health,NHS Blood and Transplant,20/03/2015,AVERAGE COST VARIANCE,General and Other,REGENT CLEANING SERVICES,1894901,-350.17,Difference between Purchase Order and Supplier Invoice price for Stores items
Department of Health,NHS Blood and Transplant,27/03/2015,AVERAGE COST VARIANCE,General and Other,SOFTCAT LTD,1894546,-0.01,Difference between Purchase Order and Supplier Invoice price for Stores items
Department of Health,NHS Blood and Transplant,31/03/2015,AVERAGE COST VARIANCE,NBS and ODT All Areas,UNIVERSITY OF LEEDS,1897696,32059,Difference between Purchase Order and Supplier Invoice price for Stores items
Department of Health,NHS Blood and Transplant,27/03/2015,AVERAGE COST VARIANCE,General and Other,WILLIAMS LEA LTD,1896042,15310.33,Difference between Purchase Order and Supplier Invoice price for Stores items
Department of Health,NHS Blood and Transplant,27/03/2015,AVERAGE COST VARIANCE,General and Other,WILLIAMS LEA LTD,1896611,3179.58,Difference between Purchase Order and Supplier Invoice price for Stores items
Department of Health,NHS Blood and Transplant,20/03/2015,DRUGS,Research & Development,CARDIFF AND VALE UNIVERSITY LOCAL HEALTH BOARD,1894803,28809.6,Drugs used as part of R and D trial
Department of Health,NHS Blood and Transplant,06/03/2015,ELECTRICITY,Estates & Facilities,EDF ENERGY,1892058,61533.14,Electricity costs
Department of Health,NHS Blood and Transplant,06/03/2015,ELECTRICITY,Estates & Facilities,EDF ENERGY,1892060,35403.5,Electricity costs
Department of Health,NHS Blood and Transplant,06/03/2015,ELECTRICITY,Estates & Facilities,EDF ENERGY,1892057,27442.07,Electricity costs
Department of Health,NHS Blood and Transplant,06/03/2015,ELECTRICITY,Estates & Facilities,EDF ENERGY,1892059,27384.12,Electricity costs
Department of Health,NHS Blood and Transplant,20/03/2015,ELECTRICITY,Estates & Facilities,MEDICAL RESEARCH COUNCIL,1891493,28989.13,Electricity costs
Department of Health,NHS Blood and Transplant,31/03/2015,ELECTRICITY,Estates & Facilities,OXFORD RADCLIFFE HOSPITALS NHS TRUST,1897884,24113.41,Electricity costs
Department of Health,NHS Blood and Transplant,13/03/2015,CLEANING CONTRACT,Estates & Facilities,MITIE TECHNICAL FACILITIES MANAGEMENT,1890054,103.73,External cleaning contracts
Department of Health,NHS Blood and Transplant,27/03/2015,CLEANING CONTRACT,Estates & Facilities,MITIE TECHNICAL FACILITIES MANAGEMENT,1894941,103.73,External cleaning contracts
Department of Health,NHS Blood and Transplant,20/03/2015,CLEANING CONTRACT,Estates & Facilities,REGENT CLEANING SERVICES,1894901,35014.99,External cleaning contracts
Department of Health,NHS Blood and Transplant,27/03/2015,CLEANING CONTRACT,Estates & Facilities,REGENT CLEANING SERVICES,1894886,25936.36,External cleaning contracts
Department of Health,NHS Blood and Transplant,27/03/2015,VEHICLE REPAIRS & MAINTENANCE,Logistics,HITACHI CAPITAL,1896176,37529.56,External contract for fleet vehicle repairs amd maintenance
Department of Health,NHS Blood and Transplant,27/03/2015,VEHICLE REPAIRS & MAINTENANCE,Logistics,HITACHI CAPITAL,1895649,29641.56,External contract for fleet vehicle repairs amd maintenance
Department of Health,NHS Blood and Transplant,27/03/2015,VEHICLE REPAIRS & MAINTENANCE,Logistics,HITACHI CAPITAL,1895647,27973.49,External contract for fleet vehicle repairs amd maintenance
Department of Health,NHS Blood and Transplant,20/03/2015,VEHICLE REPAIRS & MAINTENANCE,Logistics,HITACHI CAPITAL,1896177,-37529.56,External contract for fleet vehicle repairs amd maintenance
Department of Health,NHS Blood and Transplant,27/03/2015,VEHICLE REPAIRS & MAINTENANCE,Logistics,LEASEPLAN UK LTD,1897220,40043.89,External contract for fleet vehicle repairs amd maintenance
Department of Health,NHS Blood and Transplant,31/03/2015,EXTERNAL MAILING SERVICES,Blood Supply: Blood Donation,WILLIAMS LEA LTD,1899568,92709.56,"External costs of mailing services, primarily relating to communications with donors"
Department of Health,NHS Blood and Transplant,31/03/2015,EXTERNAL MAILING SERVICES,Blood Supply: Blood Donation,WILLIAMS LEA LTD,1899586,90855.72,"External costs of mailing services, primarily relating to communications with donors"
Department of Health,NHS Blood and Transplant,31/03/2015,EXTERNAL MAILING SERVICES,Blood Supply: Blood Donation,WILLIAMS LEA LTD,1899580,73200.72,"External costs of mailing services, primarily relating to communications with donors"
Department of Health,NHS Blood and Transplant,20/03/2015,EXTERNAL MAILING SERVICES,Blood Supply: Blood Donation,WILLIAMS LEA LTD,1896039,52366.85,"External costs of mailing services, primarily relating to communications with donors"
Department of Health,NHS Blood and Transplant,20/03/2015,EXTERNAL MAILING SERVICES,Blood Supply: Blood Donation,WILLIAMS LEA LTD,1896040,29079.15,"External costs of mailing services, primarily relating to communications with donors"
Department of Health,NHS Blood and Transplant,27/03/2015,EXTERNAL MAILING SERVICES,Blood Supply: Blood Donation,WILLIAMS LEA LTD,1896042,16246.94,"External costs of mailing services, primarily relating to communications with donors"
Department of Health,NHS Blood and Transplant,31/03/2015,EXTERNAL MAILING SERVICES,Organ Donation & Transplantation,WILLIAMS LEA LTD,1899586,12496.21,"External costs of mailing services, primarily relating to communications with donors"
Department of Health,NHS Blood and Transplant,31/03/2015,EXTERNAL MAILING SERVICES,Organ Donation & Transplantation,WILLIAMS LEA LTD,1899591,3145.89,"External costs of mailing services, primarily relating to communications with donors"
Department of Health,NHS Blood and Transplant,20/03/2015,EXTERNAL MAILING SERVICES,Organ Donation & Transplantation,WILLIAMS LEA LTD,1896041,2763.78,"External costs of mailing services, primarily relating to communications with donors"
Department of Health,NHS Blood and Transplant,06/03/2015,EXTERNAL MARKETING SERVICES,Blood Supply: Blood Donation,CARAT A TRADING DIVISION OF DENTSU AEGIS UK LTD,1888834,29440.18,"External costs of marketing services, primarily relating to communications with donors"
Department of Health,NHS Blood and Transplant,06/03/2015,EXTERNAL MARKETING SERVICES,Blood Supply: Blood Donation,CARAT A TRADING DIVISION OF DENTSU AEGIS UK LTD,1888791,25420.79,"External costs of marketing services, primarily relating to communications with donors"
Department of Health,NHS Blood and Transplant,27/03/2015,EXTERNAL MARKETING SERVICES,Blood Supply: Blood Donation,CARAT A TRADING DIVISION OF DENTSU AEGIS UK LTD,1896523,22428.22,"External costs of marketing services, primarily relating to communications with donors"
Department of Health,NHS Blood and Transplant,20/03/2015,EXTERNAL MARKETING SERVICES,Communications,ENTER HERE LLP,1895148,51046.4,"External costs of marketing services, primarily relating to communications with donors"
Department of Health,NHS Blood and Transplant,27/03/2015,EXTERNAL MARKETING SERVICES,Communications,M & C SAATCHI (UK) LTD,1897667,60815,"External costs of marketing services, primarily relating to communications with donors"
Department of Health,NHS Blood and Transplant,27/03/2015,EXTERNAL MARKETING SERVICES,Communications,M & C SAATCHI (UK) LTD,1894550,58942,"External costs of marketing services, primarily relating to communications with donors"
Department of Health,NHS Blood and Transplant,31/03/2015,EXTERNAL MARKETING SERVICES,Communications,M & C SAATCHI (UK) LTD,1899689,26998.12,"External costs of marketing services, primarily relating to communications with donors"
Department of Health,NHS Blood and Transplant,27/03/2015,EXTERNAL MARKETING SERVICES,Communications,M & C SAATCHI (UK) LTD,1897664,24462.24,"External costs of marketing services, primarily relating to communications with donors"
Department of Health,NHS Blood and Transplant,27/03/2015,EXTERNAL MARKETING SERVICES,Blood Supply: Blood Donation,M4C,1875888,28193.1,"External costs of marketing services, primarily relating to communications with donors"
Department of Health,NHS Blood and Transplant,10/03/2015,EXTERNAL MARKETING SERVICES,Blood Supply: Blood Donation,TELEPERFORMANCE LIMITED,1892086,197196.93,"External costs of marketing services, primarily relating to communications with donors"
Department of Health,NHS Blood and Transplant,10/03/2015,EXTERNAL MARKETING SERVICES,Blood Supply: Blood Donation,TELEPERFORMANCE LIMITED,1892085,88070.24,"External costs of marketing services, primarily relating to communications with donors"
Department of Health,NHS Blood and Transplant,06/03/2015,EXTERNAL MARKETING SERVICES,Blood Supply: Blood Donation,TULLO MARSHALL WARREN LTD,1887694,43353.78,"External costs of marketing services, primarily relating to communications with donors"
Department of Health,NHS Blood and Transplant,27/03/2015,EXTERNAL MARKETING SERVICES,Communications,WILLIAMS LEA LTD,1896611,19610,"External costs of marketing services, primarily relating to communications with donors"
Department of Health,NHS Blood and Transplant,13/03/2015,EXTERNAL SERVICES OTHER,Clinical,DEPARTMENT OF HEALTH,1890641,30000,External costs of providing other services
Department of Health,NHS Blood and Transplant,27/03/2015,EXTERNAL SERVICES OTHER,Human Resources,FIDELITI LTD,1897791,1050.8,External costs of providing other services
Department of Health,NHS Blood and Transplant,06/03/2015,EXTERNAL SERVICES OTHER,Human Resources,FIDELITI LTD,1891936,1020.78,External costs of providing other services
Department of Health,NHS Blood and Transplant,06/03/2015,EXTERNAL SERVICES OTHER,Estates & Facilities,MUDDIMAN BUILDING SERVICES,1888075,68450,External costs of providing other services
Department of Health,NHS Blood and Transplant,20/03/2015,EXTERNAL SERVICES OTHER,Organ Donation & Transplantation,NEDERLANDSE TRANSPLANTATIE STICKTIN,1895892,35870.74,External costs of providing other services
Department of Health,NHS Blood and Transplant,24/03/2015,EXTERNAL SERVICES OTHER,Organ Donation & Transplantation,NHS LOTHIAN,1895314,442500,External costs of providing other services
Department of Health,NHS Blood and Transplant,20/03/2015,EXTERNAL SERVICES OTHER,Finance,NHS SHARED BUSINESS SERVICES LTD,1828941,28812.6,External costs of providing other services
Department of Health,NHS Blood and Transplant,20/03/2015,EXTERNAL SERVICES OTHER,Finance,NHS SHARED BUSINESS SERVICES LTD,1837295,28812.6,External costs of providing other services
Department of Health,NHS Blood and Transplant,20/03/2015,EXTERNAL SERVICES OTHER,Finance,NHS SHARED BUSINESS SERVICES LTD,1843497,28812.6,External costs of providing other services
Department of Health,NHS Blood and Transplant,20/03/2015,EXTERNAL SERVICES OTHER,Finance,NHS SHARED BUSINESS SERVICES LTD,1853417,28812.6,External costs of providing other services
Department of Health,NHS Blood and Transplant,20/03/2015,EXTERNAL SERVICES OTHER,Finance,NHS SHARED BUSINESS SERVICES LTD,1862986,28812.6,External costs of providing other services
Department of Health,NHS Blood and Transplant,20/03/2015,EXTERNAL SERVICES OTHER,Finance,NHS SHARED BUSINESS SERVICES LTD,1889159,28812.6,External costs of providing other services
Department of Health,NHS Blood and Transplant,20/03/2015,EXTERNAL SERVICES OTHER,Finance,NHS SHARED BUSINESS SERVICES LTD,1869507,-196798.5,External costs of providing other services
Department of Health,NHS Blood and Transplant,13/03/2015,EXTERNAL SERVICES OTHER,Organ Donation & Transplantation,NORTHGATE INFORMATION SOLUTIONS LTD,1891512,187265,External costs of providing other services
Department of Health,NHS Blood and Transplant,27/03/2015,EXTERNAL SERVICES OTHER,Research & Development,PUBLIC HEALTH ENGLAND,1894711,75000,External costs of providing other services
Department of Health,NHS Blood and Transplant,20/03/2015,EXTERNAL SERVICES OTHER,Organ Donation & Transplantation,QUINTILES LIMITED,1894961,25625,External costs of providing other services
Department of Health,NHS Blood and Transplant,27/03/2015,EXTERNAL SERVICES OTHER,General and Other,SAPIENT LTD,1897601,31550,External costs of providing other services
Department of Health,NHS Blood and Transplant,27/03/2015,EXTERNAL SERVICES OTHER,General and Other,SAPIENT LTD,1897600,23662,External costs of providing other services
Department of Health,NHS Blood and Transplant,06/03/2015,EXTERNAL SERVICES OTHER,Organ Donation & Transplantation,SAPIENT LTD,1889161,29600,External costs of providing other services
Department of Health,NHS Blood and Transplant,31/03/2015,EXTERNAL SERVICES OTHER,Organ Donation & Transplantation,SAPIENT LTD,1897602,22200,External costs of providing other services
Department of Health,NHS Blood and Transplant,06/03/2015,EXTERNAL SERVICES OTHER,Organ Donation & Transplantation,SOFTCAT LTD,1891593,22113,External costs of providing other services
Department of Health,NHS Blood and Transplant,27/03/2015,EXTERNAL SERVICES OTHER,Research & Development,UNIVERSITY OF BRISTOL,1896439,35458.74,External costs of providing other services
Department of Health,NHS Blood and Transplant,06/03/2015,COURIER & DELIVERY CHARGES,Logistics,TNT EXPRESS UK LTD,1891669,72303.17,External courier and transport company costs
Department of Health,NHS Blood and Transplant,13/03/2015,COURIER & DELIVERY CHARGES,Logistics,TNT EXPRESS UK LTD,1893233,70715.68,External courier and transport company costs
Department of Health,NHS Blood and Transplant,27/03/2015,COURIER & DELIVERY CHARGES,Logistics,TNT EXPRESS UK LTD,1897333,69858.51,External courier and transport company costs
Department of Health,NHS Blood and Transplant,27/03/2015,COURIER & DELIVERY CHARGES,Logistics,TNT EXPRESS UK LTD,1897332,65717.24,External courier and transport company costs
Department of Health,NHS Blood and Transplant,31/03/2015,COURIER & DELIVERY CHARGES,Logistics,TNT EXPRESS UK LTD,1898749,58394.54,External courier and transport company costs
Department of Health,NHS Blood and Transplant,31/03/2015,COURIER & DELIVERY CHARGES,Logistics,TNT EXPRESS UK LTD,1898929,25333.99,External courier and transport company costs
Department of Health,NHS Blood and Transplant,20/03/2015,COURIER & DELIVERY CHARGES,Logistics,TNT EXPRESS UK LTD,1895630,24867.4,External courier and transport company costs
Department of Health,NHS Blood and Transplant,20/03/2015,PRINTING,Blood Supply: Blood Donation,WILLIAMS LEA LTD,1896039,4216.78,External printing costs
Department of Health,NHS Blood and Transplant,06/03/2015,AUDIT EXTERNAL FINANCIAL,Finance,NATIONAL AUDIT OFFICE,1889095,27000,Fees for external audit of statutory accounts
Department of Health,NHS Blood and Transplant,23/03/2015,AUDIT INTERNAL,Finance,DEPARTMENT OF HEALTH,1896487,35576.2,Fees for internal audit work
Department of Health,NHS Blood and Transplant,27/03/2015,TEST KITS CMV,"Blood Supply: Manufacturing, Testing & Issue",ABBOTT LABORATORIES LTD,1893144,33179.12,For testing of donations and samples for specific markers
Department of Health,NHS Blood and Transplant,27/03/2015,TEST KITS CMV,"Blood Supply: Manufacturing, Testing & Issue",ABBOTT LABORATORIES LTD,1897194,18960.66,For testing of donations and samples for specific markers
Department of Health,NHS Blood and Transplant,13/03/2015,TEST KITS CMV,"Blood Supply: Manufacturing, Testing & Issue",ABBOTT LABORATORIES LTD,1893147,60.66,For testing of donations and samples for specific markers
Department of Health,NHS Blood and Transplant,27/03/2015,TEST KITS HEPB,"Blood Supply: Manufacturing, Testing & Issue",ABBOTT LABORATORIES LTD,1893144,22387.92,For testing of donations and samples for specific markers
Department of Health,NHS Blood and Transplant,27/03/2015,TEST KITS HEPB,"Blood Supply: Manufacturing, Testing & Issue",ABBOTT LABORATORIES LTD,1897196,20039.94,For testing of donations and samples for specific markers
Department of Health,NHS Blood and Transplant,13/03/2015,TEST KITS HEPB,"Blood Supply: Manufacturing, Testing & Issue",ABBOTT LABORATORIES LTD,1893147,14384.33,For testing of donations and samples for specific markers
Department of Health,NHS Blood and Transplant,27/03/2015,TEST KITS HEPB,"Blood Supply: Manufacturing, Testing & Issue",ABBOTT LABORATORIES LTD,1897194,10737.91,For testing of donations and samples for specific markers
Department of Health,NHS Blood and Transplant,31/03/2015,TEST KITS HEPB,"Blood Supply: Manufacturing, Testing & Issue",ABBOTT LABORATORIES LTD,1899597,89.56,For testing of donations and samples for specific markers
Department of Health,NHS Blood and Transplant,31/03/2015,TEST KITS HEPB,"Blood Supply: Manufacturing, Testing & Issue",ABBOTT LABORATORIES LTD,1899601,89.56,For testing of donations and samples for specific markers
Department of Health,NHS Blood and Transplant,27/03/2015,TEST KITS HEPC,"Blood Supply: Manufacturing, Testing & Issue",ABBOTT LABORATORIES LTD,1893144,168672.4,For testing of donations and samples for specific markers
Department of Health,NHS Blood and Transplant,27/03/2015,TEST KITS HEPC,"Blood Supply: Manufacturing, Testing & Issue",ABBOTT LABORATORIES LTD,1897196,156609,For testing of donations and samples for specific markers
Department of Health,NHS Blood and Transplant,13/03/2015,TEST KITS HEPC,"Blood Supply: Manufacturing, Testing & Issue",ABBOTT LABORATORIES LTD,1893147,96606.98,For testing of donations and samples for specific markers
Department of Health,NHS Blood and Transplant,27/03/2015,TEST KITS HEPC,"Blood Supply: Manufacturing, Testing & Issue",ABBOTT LABORATORIES LTD,1897194,87793.51,For testing of donations and samples for specific markers
Department of Health,NHS Blood and Transplant,31/03/2015,TEST KITS HEPC,"Blood Supply: Manufacturing, Testing & Issue",ABBOTT LABORATORIES LTD,1899601,89.56,For testing of donations and samples for specific markers
Department of Health,NHS Blood and Transplant,27/03/2015,TEST KITS HIV,"Blood Supply: Manufacturing, Testing & Issue",ABBOTT LABORATORIES LTD,1893144,25396,For testing of donations and samples for specific markers
Department of Health,NHS Blood and Transplant,27/03/2015,TEST KITS HIV,"Blood Supply: Manufacturing, Testing & Issue",ABBOTT LABORATORIES LTD,1897196,22856.4,For testing of donations and samples for specific markers
Department of Health,NHS Blood and Transplant,27/03/2015,TEST KITS HIV,"Blood Supply: Manufacturing, Testing & Issue",ABBOTT LABORATORIES LTD,1897194,15389.71,For testing of donations and samples for specific markers
Department of Health,NHS Blood and Transplant,13/03/2015,TEST KITS HIV,"Blood Supply: Manufacturing, Testing & Issue",ABBOTT LABORATORIES LTD,1893147,13191.93,For testing of donations and samples for specific markers
Department of Health,NHS Blood and Transplant,27/03/2015,TEST KITS HTLV,"Blood Supply: Manufacturing, Testing & Issue",ABBOTT LABORATORIES LTD,1897196,39600,For testing of donations and samples for specific markers
Department of Health,NHS Blood and Transplant,27/03/2015,TEST KITS HTLV,"Blood Supply: Manufacturing, Testing & Issue",ABBOTT LABORATORIES LTD,1893144,36000,For testing of donations and samples for specific markers
Department of Health,NHS Blood and Transplant,13/03/2015,TEST KITS HTLV,"Blood Supply: Manufacturing, Testing & Issue",ABBOTT LABORATORIES LTD,1893147,21815.62,For testing of donations and samples for specific markers
Department of Health,NHS Blood and Transplant,27/03/2015,TEST KITS HTLV,"Blood Supply: Manufacturing, Testing & Issue",ABBOTT LABORATORIES LTD,1897194,18459.37,For testing of donations and samples for specific markers
Department of Health,NHS Blood and Transplant,27/03/2015,TEST KITS T CRUZI,"Blood Supply: Manufacturing, Testing & Issue",ABBOTT LABORATORIES LTD,1893144,1181.7,For testing of donations and samples for specific markers
Department of Health,NHS Blood and Transplant,26/03/2015,TEST KITS OTHER,Diagnostic & Therapeutic Services,GENDX,1897721,52002.82,For testing of donations and samples for specific markers
Department of Health,NHS Blood and Transplant,20/03/2015,TEST KITS - MOLECULAR,"Blood Supply: Manufacturing, Testing & Issue",GRIFOLS UK LTD,1890752,25440,For testing of donations and samples for specific markers
Department of Health,NHS Blood and Transplant,06/03/2015,TEST KITS OTHER,Diagnostic & Therapeutic Services,QUEST BIOMEDICAL LIMITED,1887908,29203.2,For testing of donations and samples for specific markers
Department of Health,NHS Blood and Transplant,27/03/2015,TEST KITS NAT,"Blood Supply: Manufacturing, Testing & Issue",ROCHE DIAGNOSTICS LIMITED,1897616,667922.3,For testing of donations and samples for specific markers
Department of Health,NHS Blood and Transplant,27/03/2015,TEST KITS NAT,"Blood Supply: Manufacturing, Testing & Issue",ROCHE DIAGNOSTICS LIMITED,1897617,408639.95,For testing of donations and samples for specific markers
Department of Health,NHS Blood and Transplant,27/03/2015,TEST KITS OTHER,Diagnostic & Therapeutic Services,VH BIO LTD,1895836,84732,For testing of donations and samples for specific markers
Department of Health,NHS Blood and Transplant,20/03/2015,TEST KITS OTHER,Diagnostic & Therapeutic Services,VH BIO LTD,1893722,39396,For testing of donations and samples for specific markers
Department of Health,NHS Blood and Transplant,27/03/2015,TEST KITS OTHER,Diagnostic & Therapeutic Services,VH BIO LTD,1896166,31032,For testing of donations and samples for specific markers
Department of Health,NHS Blood and Transplant,27/03/2015,IMPORTS FRESH FROZEN PLASMA,"Blood Supply: Manufacturing, Testing & Issue",PAM MEDICAL SUPPLIES LIMITED,1894987,76560,Imports of Fresh Frozen Plasma
Department of Health,NHS Blood and Transplant,27/03/2015,IMPORTS FRESH FROZEN PLASMA,"Blood Supply: Manufacturing, Testing & Issue",PAM MEDICAL SUPPLIES LIMITED,1898021,60000,Imports of Fresh Frozen Plasma
Department of Health,NHS Blood and Transplant,31/03/2015,INVENTORY MATERIALS,NBS and ODT All Areas,HAEMONETICS LIMITED,1899222,45653.76,Items purchased for warehouses (and subsequent issue to operational departments)
Department of Health,NHS Blood and Transplant,06/03/2015,INVENTORY MATERIALS,NBS and ODT All Areas,HAEMONETICS LIMITED,1890778,25738.56,Items purchased for warehouses (and subsequent issue to operational departments)
Department of Health,NHS Blood and Transplant,13/03/2015,INVENTORY MATERIALS,NBS and ODT All Areas,INSIGHT HEALTH LTD,1890295,29491.2,Items purchased for warehouses (and subsequent issue to operational departments)
Department of Health,NHS Blood and Transplant,27/03/2015,INVENTORY MATERIALS,NBS and ODT All Areas,INSIGHT HEALTH LTD,1897503,29491.2,Items purchased for warehouses (and subsequent issue to operational departments)
Department of Health,NHS Blood and Transplant,27/03/2015,INVENTORY MATERIALS,NBS and ODT All Areas,MACO PHARMA UK LTD,1896455,74436.86,Items purchased for warehouses (and subsequent issue to operational departments)
Department of Health,NHS Blood and Transplant,27/03/2015,INVENTORY MATERIALS,NBS and ODT All Areas,MACO PHARMA UK LTD,1896418,64717.63,Items purchased for warehouses (and subsequent issue to operational departments)
Department of Health,NHS Blood and Transplant,06/03/2015,INVENTORY MATERIALS,NBS and ODT All Areas,MACO PHARMA UK LTD,1889790,63931.39,Items purchased for warehouses (and subsequent issue to operational departments)
Department of Health,NHS Blood and Transplant,20/03/2015,INVENTORY MATERIALS,NBS and ODT All Areas,MACO PHARMA UK LTD,1890688,63931.39,Items purchased for warehouses (and subsequent issue to operational departments)
Department of Health,NHS Blood and Transplant,13/03/2015,INVENTORY MATERIALS,NBS and ODT All Areas,MACO PHARMA UK LTD,1890669,63399.17,Items purchased for warehouses (and subsequent issue to operational departments)
Department of Health,NHS Blood and Transplant,20/03/2015,INVENTORY MATERIALS,NBS and ODT All Areas,MACO PHARMA UK LTD,1894024,63399.17,Items purchased for warehouses (and subsequent issue to operational departments)
Department of Health,NHS Blood and Transplant,20/03/2015,INVENTORY MATERIALS,NBS and ODT All Areas,MACO PHARMA UK LTD,1894088,63399.17,Items purchased for warehouses (and subsequent issue to operational departments)
Department of Health,NHS Blood and Transplant,27/03/2015,INVENTORY MATERIALS,NBS and ODT All Areas,MACO PHARMA UK LTD,1897521,63399.17,Items purchased for warehouses (and subsequent issue to operational departments)
Department of Health,NHS Blood and Transplant,06/03/2015,INVENTORY MATERIALS,NBS and ODT All Areas,MACO PHARMA UK LTD,1889808,63157.54,Items purchased for warehouses (and subsequent issue to operational departments)
Department of Health,NHS Blood and Transplant,27/03/2015,INVENTORY MATERIALS,NBS and ODT All Areas,MACO PHARMA UK LTD,1898407,45513.22,Items purchased for warehouses (and subsequent issue to operational departments)
Department of Health,NHS Blood and Transplant,20/03/2015,INVENTORY MATERIALS,NBS and ODT All Areas,MACO PHARMA UK LTD,1894045,45158.4,Items purchased for warehouses (and subsequent issue to operational departments)
Department of Health,NHS Blood and Transplant,13/03/2015,INVENTORY MATERIALS,NBS and ODT All Areas,MACO PHARMA UK LTD,1890629,37347.55,Items purchased for warehouses (and subsequent issue to operational departments)
Department of Health,NHS Blood and Transplant,27/03/2015,INVENTORY MATERIALS,NBS and ODT All Areas,MACO PHARMA UK LTD,1897525,37143.07,Items purchased for warehouses (and subsequent issue to operational departments)
Department of Health,NHS Blood and Transplant,27/03/2015,INVENTORY MATERIALS,NBS and ODT All Areas,MACO PHARMA UK LTD,1897561,36126.72,Items purchased for warehouses (and subsequent issue to operational departments)
Department of Health,NHS Blood and Transplant,27/03/2015,INVENTORY MATERIALS,NBS and ODT All Areas,MACO PHARMA UK LTD,1898405,28787.47,Items purchased for warehouses (and subsequent issue to operational departments)
Department of Health,NHS Blood and Transplant,20/03/2015,INVENTORY MATERIALS,NBS and ODT All Areas,MACO PHARMA UK LTD,1894073,28432.66,Items purchased for warehouses (and subsequent issue to operational departments)
Department of Health,NHS Blood and Transplant,13/03/2015,INVENTORY MATERIALS,NBS and ODT All Areas,MACO PHARMA UK LTD,1889811,27827.14,Items purchased for warehouses (and subsequent issue to operational departments)
Department of Health,NHS Blood and Transplant,20/03/2015,INVENTORY MATERIALS,NBS and ODT All Areas,MACO PHARMA UK LTD,1894035,27627.26,Items purchased for warehouses (and subsequent issue to operational departments)
Department of Health,NHS Blood and Transplant,06/03/2015,INVENTORY MATERIALS,NBS and ODT All Areas,MACO PHARMA UK LTD,1887967,27449.86,Items purchased for warehouses (and subsequent issue to operational departments)
Department of Health,NHS Blood and Transplant,13/03/2015,INVENTORY MATERIALS,NBS and ODT All Areas,MACO PHARMA UK LTD,1890638,27449.86,Items purchased for warehouses (and subsequent issue to operational departments)
Department of Health,NHS Blood and Transplant,27/03/2015,INVENTORY MATERIALS,NBS and ODT All Areas,MACO PHARMA UK LTD,1898400,27095.04,Items purchased for warehouses (and subsequent issue to operational departments)
Department of Health,NHS Blood and Transplant,20/03/2015,INVENTORY MATERIALS,NBS and ODT All Areas,MACO PHARMA UK LTD,1891348,25724.16,Items purchased for warehouses (and subsequent issue to operational departments)
Department of Health,NHS Blood and Transplant,20/03/2015,INVENTORY MATERIALS,NBS and ODT All Areas,MACO PHARMA UK LTD,1894025,25724.16,Items purchased for warehouses (and subsequent issue to operational departments)
Department of Health,NHS Blood and Transplant,27/03/2015,INVENTORY MATERIALS,NBS and ODT All Areas,MACO PHARMA UK LTD,1896466,25724.16,Items purchased for warehouses (and subsequent issue to operational departments)
Department of Health,NHS Blood and Transplant,31/03/2015,INVENTORY MATERIALS,NBS and ODT All Areas,MACO PHARMA UK LTD,1899019,25724.16,Items purchased for warehouses (and subsequent issue to operational departments)
Department of Health,NHS Blood and Transplant,20/03/2015,INVENTORY MATERIALS,NBS and ODT All Areas,TERUMO BCT EUROPE NV/SA,1893639,103680,Items purchased for warehouses (and subsequent issue to operational departments)
Department of Health,NHS Blood and Transplant,31/03/2015,INVENTORY MATERIALS,NBS and ODT All Areas,TERUMO BCT EUROPE NV/SA,1897012,82944,Items purchased for warehouses (and subsequent issue to operational departments)
Department of Health,NHS Blood and Transplant,27/03/2015,INVENTORY MATERIALS,NBS and ODT All Areas,TERUMO BCT EUROPE NV/SA,1896987,77760,Items purchased for warehouses (and subsequent issue to operational departments)
Department of Health,NHS Blood and Transplant,27/03/2015,INVENTORY MATERIALS,NBS and ODT All Areas,TERUMO BCT EUROPE NV/SA,1898532,77760,Items purchased for warehouses (and subsequent issue to operational departments)
Department of Health,NHS Blood and Transplant,06/03/2015,INVENTORY MATERIALS,NBS and ODT All Areas,TERUMO BCT EUROPE NV/SA,1889900,62208,Items purchased for warehouses (and subsequent issue to operational departments)
Department of Health,NHS Blood and Transplant,20/03/2015,INVENTORY MATERIALS,NBS and ODT All Areas,TERUMO BCT EUROPE NV/SA,1893623,51840,Items purchased for warehouses (and subsequent issue to operational departments)
Department of Health,NHS Blood and Transplant,27/03/2015,INVENTORY MATERIALS,NBS and ODT All Areas,TERUMO BCT EUROPE NV/SA,1896997,51840,Items purchased for warehouses (and subsequent issue to operational departments)
Department of Health,NHS Blood and Transplant,06/03/2015,INVENTORY MATERIALS,NBS and ODT All Areas,TERUMO BCT EUROPE NV/SA,1889923,41472,Items purchased for warehouses (and subsequent issue to operational departments)
Department of Health,NHS Blood and Transplant,13/03/2015,INVENTORY MATERIALS,NBS and ODT All Areas,TERUMO BCT EUROPE NV/SA,1890030,41472,Items purchased for warehouses (and subsequent issue to operational departments)
Department of Health,NHS Blood and Transplant,20/03/2015,INVENTORY MATERIALS,NBS and ODT All Areas,TERUMO BCT EUROPE NV/SA,1889973,41472,Items purchased for warehouses (and subsequent issue to operational departments)
Department of Health,NHS Blood and Transplant,27/03/2015,INVENTORY MATERIALS,NBS and ODT All Areas,TERUMO BCT EUROPE NV/SA,1897010,41472,Items purchased for warehouses (and subsequent issue to operational departments)
Department of Health,NHS Blood and Transplant,27/03/2015,INVENTORY MATERIALS,NBS and ODT All Areas,TERUMO BCT EUROPE NV/SA,1897026,41472,Items purchased for warehouses (and subsequent issue to operational departments)
Department of Health,NHS Blood and Transplant,27/03/2015,INVENTORY MATERIALS,NBS and ODT All Areas,TERUMO BCT EUROPE NV/SA,1898538,41472,Items purchased for warehouses (and subsequent issue to operational departments)
Department of Health,NHS Blood and Transplant,13/03/2015,INVENTORY MATERIALS,NBS and ODT All Areas,TERUMO BCT EUROPE NV/SA,1890003,40652.64,Items purchased for warehouses (and subsequent issue to operational departments)
Department of Health,NHS Blood and Transplant,31/03/2015,INVENTORY MATERIALS,NBS and ODT All Areas,TERUMO BCT EUROPE NV/SA,1898528,39744,Items purchased for warehouses (and subsequent issue to operational departments)
Department of Health,NHS Blood and Transplant,27/03/2015,INVENTORY MATERIALS,NBS and ODT All Areas,TERUMO BCT EUROPE NV/SA,1898542,39737.04,Items purchased for warehouses (and subsequent issue to operational departments)
Department of Health,NHS Blood and Transplant,13/03/2015,INVENTORY MATERIALS,NBS and ODT All Areas,TERUMO BCT EUROPE NV/SA,1889930,38880,Items purchased for warehouses (and subsequent issue to operational departments)
Department of Health,NHS Blood and Transplant,20/03/2015,INVENTORY MATERIALS,NBS and ODT All Areas,TERUMO BCT EUROPE NV/SA,1889970,38880,Items purchased for warehouses (and subsequent issue to operational departments)
Department of Health,NHS Blood and Transplant,31/03/2015,INVENTORY MATERIALS,NBS and ODT All Areas,TERUMO BCT EUROPE NV/SA,1898540,31104,Items purchased for warehouses (and subsequent issue to operational departments)
Department of Health,NHS Blood and Transplant,31/03/2015,INVENTORY MATERIALS,NBS and ODT All Areas,TERUMO BCT EUROPE NV/SA,1899029,31104,Items purchased for warehouses (and subsequent issue to operational departments)
Department of Health,NHS Blood and Transplant,06/03/2015,INVENTORY MATERIALS,NBS and ODT All Areas,THERAKOS (UK) LTD,1889186,33728.4,Items purchased for warehouses (and subsequent issue to operational departments)
Department of Health,NHS Blood and Transplant,20/03/2015,INVENTORY MATERIALS,NBS and ODT All Areas,THERAKOS (UK) LTD,1895027,33728.4,Items purchased for warehouses (and subsequent issue to operational departments)
Department of Health,NHS Blood and Transplant,31/03/2015,IT HARDWARE MAINTENANCE,Business Transformation Services,OPEN REALITY,1899121,1349.36,Maintenance costs of IT hardware
Department of Health,NHS Blood and Transplant,20/03/2015,IT HARDWARE MAINTENANCE,Business Transformation Services,SAVANT LIMITED,1894475,29271.75,Maintenance costs of IT hardware
Department of Health,NHS Blood and Transplant,13/03/2015,IT HARDWARE MAINTENANCE,Business Transformation Services,VODAFONE,1888013,1647.78,Maintenance costs of IT hardware
Department of Health,NHS Blood and Transplant,31/03/2015,IT HARDWARE MAINTENANCE,Business Transformation Services,VODAFONE,1899326,1647.78,Maintenance costs of IT hardware
Department of Health,NHS Blood and Transplant,31/03/2015,IT SOFTWARE MAINTENANCE,Business Transformation Services,OPEN REALITY,1899121,3397.34,Maintenance costs of IT software
Department of Health,NHS Blood and Transplant,20/03/2015,IT SOFTWARE MAINTENANCE,Business Transformation Services,SAVANT LIMITED,1894475,227473.47,Maintenance costs of IT software
Department of Health,NHS Blood and Transplant,13/03/2015,IT SOFTWARE MAINTENANCE,Business Transformation Services,VODAFONE,1888013,34237.79,Maintenance costs of IT software
Department of Health,NHS Blood and Transplant,31/03/2015,IT SOFTWARE MAINTENANCE,Business Transformation Services,VODAFONE,1899326,1475.29,Maintenance costs of IT software
Department of Health,NHS Blood and Transplant,20/03/2015,MANAGEMENT CONSULTANTS,Organ Donation & Transplantation,ATOS CONSULTING LIMITED,1890303,44800,Management consultancy fees incurred - to support development of ODT National Hub strategy
Department of Health,NHS Blood and Transplant,27/03/2015,MANAGEMENT CONSULTANTS,Organ Donation & Transplantation,ATOS CONSULTING LIMITED,1898563,44800,Management consultancy fees incurred - to support development of ODT National Hub strategy
Department of Health,NHS Blood and Transplant,20/03/2015,MANAGEMENT CONSULTANTS,Organ Donation & Transplantation,ATOS CONSULTING LIMITED,1883784,33600,Management consultancy fees incurred - to support development of ODT National Hub strategy
Department of Health,NHS Blood and Transplant,20/03/2015,MANAGEMENT CONSULTANTS,General and Other,ENGINE PARTNERS UK LLP,1893062,73176.31,Management consultancy fees incurred - to support development of Transformation Discovery project
Department of Health,NHS Blood and Transplant,31/03/2015,MANAGEMENT CONSULTANTS,General and Other,ENGINE PARTNERS UK LLP,1898022,22407.75,Management consultancy fees incurred - to support development of Transformation Discovery project
Department of Health,NHS Blood and Transplant,13/03/2015,MANAGEMENT CONSULTANTS,Business Transformation Services,ATOS CONSULTING LIMITED,1893137,30000,Management consultancy fees incurred - to support IT Strategy development
Department of Health,NHS Blood and Transplant,20/03/2015,MANAGEMENT CONSULTANTS,General and Other,ATOS CONSULTING LIMITED,1895013,33660,Management consultancy fees incurred - to support IT Strategy Framework
Department of Health,NHS Blood and Transplant,20/03/2015,MEDIA ADVERTISING,Blood Supply: Blood Donation,CARAT A TRADING DIVISION OF DENTSU AEGIS UK LTD,1894540,78839.07,Media advertising costs
Department of Health,NHS Blood and Transplant,31/03/2015,PREMISES MAINTENANCE - MINOR WORKS,Estates & Facilities,HOPKINS YOUNG ELECTRICAL LTD,1899044,65303.95,Minor works projects costs
Department of Health,NHS Blood and Transplant,20/03/2015,PREMISES MAINTENANCE - MINOR WORKS,Estates & Facilities,INTERSERVE  CONSTRUCTION LTD,1895448,459146.76,Minor works projects costs
Department of Health,NHS Blood and Transplant,27/03/2015,PREMISES MAINTENANCE - MINOR WORKS,Estates & Facilities,INTERSERVE  CONSTRUCTION LTD,1897622,281418.56,Minor works projects costs
Department of Health,NHS Blood and Transplant,20/03/2015,PREMISES MAINTENANCE - MINOR WORKS,Estates & Facilities,INTERSERVE  CONSTRUCTION LTD,1895447,157956.46,Minor works projects costs
Department of Health,NHS Blood and Transplant,27/03/2015,PREMISES MAINTENANCE - MINOR WORKS,Estates & Facilities,INTERSERVE  CONSTRUCTION LTD,1896593,145827.85,Minor works projects costs
Department of Health,NHS Blood and Transplant,13/03/2015,PREMISES MAINTENANCE - MINOR WORKS,Estates & Facilities,INTERSERVE  CONSTRUCTION LTD,1891659,101135.92,Minor works projects costs
Department of Health,NHS Blood and Transplant,27/03/2015,PREMISES MAINTENANCE - MINOR WORKS,Estates & Facilities,INTERSERVE  CONSTRUCTION LTD,1897624,88641.66,Minor works projects costs
Department of Health,NHS Blood and Transplant,06/03/2015,PREMISES MAINTENANCE - MINOR WORKS,Estates & Facilities,INTERSERVE  CONSTRUCTION LTD,1891660,82172.15,Minor works projects costs
Department of Health,NHS Blood and Transplant,06/03/2015,PREMISES MAINTENANCE - MINOR WORKS,Estates & Facilities,INTERSERVE  CONSTRUCTION LTD,1891613,66503.16,Minor works projects costs
Department of Health,NHS Blood and Transplant,20/03/2015,PREMISES MAINTENANCE - MINOR WORKS,Estates & Facilities,INTERSERVE  CONSTRUCTION LTD,1890713,62219.8,Minor works projects costs
Department of Health,NHS Blood and Transplant,27/03/2015,PREMISES MAINTENANCE - MINOR WORKS,Estates & Facilities,INTERSERVE  CONSTRUCTION LTD,1897623,60273.77,Minor works projects costs
Department of Health,NHS Blood and Transplant,27/03/2015,PREMISES MAINTENANCE - MINOR WORKS,Estates & Facilities,INTERSERVE  CONSTRUCTION LTD,1897958,56219.63,Minor works projects costs
Department of Health,NHS Blood and Transplant,06/03/2015,PREMISES MAINTENANCE - MINOR WORKS,Estates & Facilities,INTERSERVE  CONSTRUCTION LTD,1891510,50815.52,Minor works projects costs
Department of Health,NHS Blood and Transplant,27/03/2015,PREMISES MAINTENANCE - MINOR WORKS,Estates & Facilities,INTERSERVE  CONSTRUCTION LTD,1898154,24587.4,Minor works projects costs
Department of Health,NHS Blood and Transplant,20/03/2015,PREMISES MAINTENANCE - MINOR WORKS,Estates & Facilities,INTERSERVE  CONSTRUCTION LTD,1892016,9631.81,Minor works projects costs
Department of Health,NHS Blood and Transplant,06/03/2015,PREMISES MAINTENANCE - MINOR WORKS,Estates & Facilities,JOHN COULSON (BUILDERS) LTD,1887212,25438,Minor works projects costs
Department of Health,NHS Blood and Transplant,31/03/2015,PREMISES MAINTENANCE - MINOR WORKS,Estates & Facilities,MUDDIMAN BUILDING SERVICES,1899189,39300,Minor works projects costs
Department of Health,NHS Blood and Transplant,13/03/2015,PREMISES MAINTENANCE - MINOR WORKS,Estates & Facilities,VODAFONE,1888013,1950,Minor works projects costs
Department of Health,NHS Blood and Transplant,13/03/2015,MOBILE TELEPHONES,Business Transformation Services,VODAFONE,1888013,47468.33,Mobile telephone costs
Department of Health,NHS Blood and Transplant,31/03/2015,MOBILE TELEPHONES,Business Transformation Services,VODAFONE,1899326,41185.07,Mobile telephone costs
Department of Health,NHS Blood and Transplant,31/03/2015,MOBILE TELEPHONES,Human Resources,VODAFONE,1899326,9288,Mobile telephone costs
Department of Health,NHS Blood and Transplant,06/03/2015,OTHER PROFESSIONAL FEES,General and Other,SOFTCAT LTD,1889608,38023.23,Other professional fees - in support of Planning and Control System development
Department of Health,NHS Blood and Transplant,20/03/2015,OTHER PROFESSIONAL FEES,General and Other,SOFTCAT LTD,1892644,24325.8,Other professional fees - in support of Planning and Control System development
Department of Health,NHS Blood and Transplant,27/03/2015,OTHER PROFESSIONAL FEES,Logistics,HITACHI CAPITAL,1895649,2787.85,Other professional fees - monthly management charge relating to leased fleet vehicle maintenance contract
Department of Health,NHS Blood and Transplant,27/03/2015,OTHER PROFESSIONAL FEES,Logistics,HITACHI CAPITAL,1895647,2678.25,Other professional fees - monthly management charge relating to leased fleet vehicle maintenance contract
Department of Health,NHS Blood and Transplant,27/03/2015,OTHER PROFESSIONAL FEES,Logistics,LEASEPLAN UK LTD,1897220,2805.08,Other professional fees - monthly management charge relating to leased fleet vehicle maintenance contract
Department of Health,NHS Blood and Transplant,27/03/2015,OTHER PROFESSIONAL FEES,Estates & Facilities,INTERSERVE  CONSTRUCTION LTD,1897765,23067.99,Other professional fees - project management costs relating to building works contract
Department of Health,NHS Blood and Transplant,31/03/2015,OTHER PROFESSIONAL FEES,Business Transformation Services,SCC - AUDIOVISUAL DIVISION,1899650,31486.64,Other professional fees - to support data centre migration project
Department of Health,NHS Blood and Transplant,27/03/2015,OTHER PROFESSIONAL FEES,General and Other,OBS LOGISTICS LTD,1891513,25000,Other professional fees - Transport Management System solution design and project management
Department of Health,NHS Blood and Transplant,13/03/2015,PREMISES MAINTENANCE - PLANNED,Estates & Facilities,MITIE TECHNICAL FACILITIES MANAGEMENT,1890054,56911.23,Planned / scheduled premises maintenace costs
Department of Health,NHS Blood and Transplant,27/03/2015,PREMISES MAINTENANCE - PLANNED,Estates & Facilities,MITIE TECHNICAL FACILITIES MANAGEMENT,1894941,56911.23,Planned / scheduled premises maintenace costs
Department of Health,NHS Blood and Transplant,31/03/2015,PREMISES MAINTENANCE - PLANNED,Estates & Facilities,NORLAND MANAGED SERVICES,1899116,61515.65,Planned / scheduled premises maintenace costs
Department of Health,NHS Blood and Transplant,31/03/2015,PREMISES MAINTENANCE - PLANNED,Estates & Facilities,NORLAND MANAGED SERVICES,1898491,61198.04,Planned / scheduled premises maintenace costs
Department of Health,NHS Blood and Transplant,13/03/2015,PREMISES MAINTENANCE - PLANNED,Estates & Facilities,NORLAND MANAGED SERVICES,1890167,61059,Planned / scheduled premises maintenace costs
Department of Health,NHS Blood and Transplant,13/03/2015,PREMISES MAINTENANCE - PLANNED,Estates & Facilities,NORLAND MANAGED SERVICES,1890163,60730.87,Planned / scheduled premises maintenace costs
Department of Health,NHS Blood and Transplant,13/03/2015,POSTAGE,Estates & Facilities,PITNEY BOWES LTD,1893229,42162.94,Postage costs
Department of Health,NHS Blood and Transplant,27/03/2015,POSTAGE,Blood Supply: Blood Donation,ROYAL MAIL(PETERBOROUGH),1896312,26314.53,Postage costs
Department of Health,NHS Blood and Transplant,31/03/2015,POSTAGE,Blood Supply: Blood Donation,WILLIAMS LEA LTD,1899568,225585.42,Postage costs
Department of Health,NHS Blood and Transplant,20/03/2015,POSTAGE,Blood Supply: Blood Donation,WILLIAMS LEA LTD,1896040,214503.56,Postage costs
Department of Health,NHS Blood and Transplant,31/03/2015,POSTAGE,Blood Supply: Blood Donation,WILLIAMS LEA LTD,1899580,211337.25,Postage costs
Department of Health,NHS Blood and Transplant,27/03/2015,POSTAGE,Blood Supply: Blood Donation,WILLIAMS LEA LTD,1896042,10436.15,Postage costs
Department of Health,NHS Blood and Transplant,31/03/2015,POSTAGE,Organ Donation & Transplantation,WILLIAMS LEA LTD,1899586,108234.35,Postage costs
Department of Health,NHS Blood and Transplant,31/03/2015,POSTAGE,Organ Donation & Transplantation,WILLIAMS LEA LTD,1899591,21806.82,Postage costs
Department of Health,NHS Blood and Transplant,20/03/2015,POSTAGE,Organ Donation & Transplantation,WILLIAMS LEA LTD,1896041,18538.04,Postage costs
Department of Health,NHS Blood and Transplant,20/03/2015,RENT/LEASE,Estates & Facilities,EDDISONS,1893743,153000,Property rent costs
Department of Health,NHS Blood and Transplant,20/03/2015,RENT/LEASE,Estates & Facilities,GBR PHOENIX BEARD,1893604,30000,Property rent costs
Department of Health,NHS Blood and Transplant,20/03/2015,RENT/LEASE,Estates & Facilities,JONES LANG LASALLE,1894157,34131,Property rent costs
Department of Health,NHS Blood and Transplant,20/03/2015,RENT/LEASE,Estates & Facilities,JONES LANG LASALLE,1894205,33052.5,Property rent costs
Department of Health,NHS Blood and Transplant,31/03/2015,RENT/LEASE,Estates & Facilities,NHS PROPERTY SERVICES LTD,1894571,27614.5,Property rent costs
Department of Health,NHS Blood and Transplant,20/03/2015,RENT/LEASE,Estates & Facilities,OXFORD RADCLIFFE HOSPITALS NHS TRUST,1893710,115250,Property rent costs
Department of Health,NHS Blood and Transplant,20/03/2015,RENT/LEASE,Estates & Facilities,SOLVAY SOLUTIONS UK LIMITED,1896208,68360.4,Property rent costs
Department of Health,NHS Blood and Transplant,20/03/2015,RENT/LEASE,Estates & Facilities,SOLVAY SOLUTIONS UK LIMITED,1891487,33348.52,Property rent costs
Department of Health,NHS Blood and Transplant,20/03/2015,RENT/LEASE,Estates & Facilities,UKLP ASSETS LTD,1893511,123000,Property rent costs
Department of Health,NHS Blood and Transplant,27/03/2015,EQUIPMENT PURCHASES,"Blood Supply: Manufacturing, Testing & Issue",HOT IDEAS LTD,1896002,72000,Purchase of Equipment
Department of Health,NHS Blood and Transplant,06/03/2015,CAPITAL PURCHASES ACCOUNT,NBS and ODT All Areas,ASEPTIC  TECHNOLOGIES SA,1871307,79204.08,Purchase of Fixed Assets
Department of Health,NHS Blood and Transplant,19/03/2015,CAPITAL PURCHASES ACCOUNT,NBS and ODT All Areas,BIOSAFE SA,1857008,81013.44,Purchase of Fixed Assets
Department of Health,NHS Blood and Transplant,06/03/2015,CAPITAL PURCHASES ACCOUNT,NBS and ODT All Areas,COOLAIR EQUIPMENT LTD,1883152,32021.64,Purchase of Fixed Assets
Department of Health,NHS Blood and Transplant,06/03/2015,CAPITAL PURCHASES ACCOUNT,NBS and ODT All Areas,DEVA MEDICAL ELECTRONICS LIMITED,1885794,75000,Purchase of Fixed Assets
Department of Health,NHS Blood and Transplant,13/03/2015,CAPITAL PURCHASES ACCOUNT,NBS and ODT All Areas,DIAMED GB LTD,1893412,336000,Purchase of Fixed Assets
Department of Health,NHS Blood and Transplant,27/03/2015,CAPITAL PURCHASES ACCOUNT,NBS and ODT All Areas,FRESENIUS KABI,1895934,31812.34,Purchase of Fixed Assets
Department of Health,NHS Blood and Transplant,20/03/2015,CAPITAL PURCHASES ACCOUNT,NBS and ODT All Areas,INTERSERVE  CONSTRUCTION LTD,1892016,26592.52,Purchase of Fixed Assets
Department of Health,NHS Blood and Transplant,20/03/2015,CAPITAL PURCHASES ACCOUNT,NBS and ODT All Areas,LIFE TECHNOLOGIES LTD,1895862,188498.26,Purchase of Fixed Assets
Department of Health,NHS Blood and Transplant,20/03/2015,CAPITAL PURCHASES ACCOUNT,NBS and ODT All Areas,LIFE TECHNOLOGIES LTD,1895154,184118.16,Purchase of Fixed Assets
Department of Health,NHS Blood and Transplant,27/03/2015,CAPITAL PURCHASES ACCOUNT,NBS and ODT All Areas,LIFE TECHNOLOGIES LTD,1897169,183698.26,Purchase of Fixed Assets
Department of Health,NHS Blood and Transplant,20/03/2015,CAPITAL PURCHASES ACCOUNT,NBS and ODT All Areas,LIFE TECHNOLOGIES LTD,1895865,183697.9,Purchase of Fixed Assets
Department of Health,NHS Blood and Transplant,06/03/2015,CAPITAL PURCHASES ACCOUNT,NBS and ODT All Areas,MACO PHARMA UK LTD,1890695,49200,Purchase of Fixed Assets
Department of Health,NHS Blood and Transplant,20/03/2015,CAPITAL PURCHASES ACCOUNT,NBS and ODT All Areas,MARCOLD LIMITED,1896226,95299.2,Purchase of Fixed Assets
Department of Health,NHS Blood and Transplant,20/03/2015,CAPITAL PURCHASES ACCOUNT,NBS and ODT All Areas,MMM MEDICAL EQUIPMENT (UK) LTD,1895155,95643.62,Purchase of Fixed Assets
Department of Health,NHS Blood and Transplant,20/03/2015,CAPITAL PURCHASES ACCOUNT,NBS and ODT All Areas,PANASONIC BIOMEDICAL SALES EUROPE BV,1894142,36240,Purchase of Fixed Assets
Department of Health,NHS Blood and Transplant,20/03/2015,CAPITAL PURCHASES ACCOUNT,NBS and ODT All Areas,SCION TECHNICAL SERVICES LTD.,1895449,94733.59,Purchase of Fixed Assets
Department of Health,NHS Blood and Transplant,31/03/2015,IT HARDWARE,Business Transformation Services,OPEN REALITY,1899121,32174.54,Purchase of IT hardware
Department of Health,NHS Blood and Transplant,31/03/2015,IT HARDWARE,Business Transformation Services,SOFTCAT LTD,1899150,46233.79,Purchase of IT hardware
Department of Health,NHS Blood and Transplant,27/03/2015,IT HARDWARE,General and Other,SOFTCAT LTD,1897731,147933.96,Purchase of IT hardware
Department of Health,NHS Blood and Transplant,27/03/2015,IT HARDWARE,General and Other,SOFTCAT LTD,1894546,64213.89,Purchase of IT hardware
Department of Health,NHS Blood and Transplant,20/03/2015,IT SOFTWARE,Business Transformation Services,SAVANT LIMITED,1894534,102906.36,Purchase of IT software
Department of Health,NHS Blood and Transplant,27/03/2015,IT SOFTWARE LICENCE FEES,Finance,NEXTRASOFT LIMITED,1897793,29582,Purchase of IT software licences
Department of Health,NHS Blood and Transplant,27/03/2015,IT SOFTWARE LICENCE FEES,Business Transformation Services,SOFTCAT LTD,1897621,62333.28,Purchase of IT software licences
Department of Health,NHS Blood and Transplant,27/03/2015,IT SOFTWARE LICENCE FEES,Business Transformation Services,SOFTCAT LTD,1896896,37562.8,Purchase of IT software licences
Department of Health,NHS Blood and Transplant,31/03/2015,IT SOFTWARE LICENCE FEES,Business Transformation Services,VODAFONE,1899326,5364.43,Purchase of IT software licences
Department of Health,NHS Blood and Transplant,13/03/2015,IT SOFTWARE LICENCE FEES,Business Transformation Services,VODAFONE,1888013,5184.43,Purchase of IT software licences
Department of Health,NHS Blood and Transplant,20/03/2015,REGISTRAR,Clinical,KINGS COLLEGE HOSPITAL NHS FOUNDATION TRUST,1892425,60000,Reimbursement to other bodies for Medical Registrar staff
Department of Health,NHS Blood and Transplant,31/03/2015,REGISTRAR,Clinical,PAPWORTH HOSPITAL NHS TRUST,1898083,60000,Reimbursement to other bodies for Medical Registrar staff
Department of Health,NHS Blood and Transplant,20/03/2015,REGISTRAR,Clinical,UNIVERSITY OF CAMBRIDGE,1895319,41659.54,Reimbursement to other bodies for Medical Registrar staff
Department of Health,NHS Blood and Transplant,20/03/2015,CONSULTANT,Clinical,UNIVERSITY OF CAMBRIDGE,1893738,39184.23,Reimbursement to other NHS bodies for Medical Consultant staff
Department of Health,NHS Blood and Transplant,31/03/2015,STEAM,Estates & Facilities,OXFORD RADCLIFFE HOSPITALS NHS TRUST,1897884,3719.4,Steam power costs
Department of Health,NHS Blood and Transplant,31/03/2015,TELEPHONES,Business Transformation Services,VODAFONE,1899326,78202.66,Telephone costs
Department of Health,NHS Blood and Transplant,13/03/2015,TELEPHONES,Business Transformation Services,VODAFONE,1888013,77875.82,Telephone costs
Department of Health,NHS Blood and Transplant,20/03/2015,TRAINING AND CONFERENCES ADM,Blood Supply: Blood Donation,ESRO,1896323,39650,Training and Conference costs for Admin Staff
Department of Health,NHS Blood and Transplant,31/03/2015,TRAINING AND CONFERENCES MED,Organ Donation & Transplantation,NOTTINGHAM UNIVERSITY HOSP NHS TRUST,1899709,30725,Training and Conference costs for Medical Staff
Department of Health,NHS Blood and Transplant,30/03/2015,TRAVEL AND HOTEL SUSPENSE ACCOUNT,NBS and ODT All Areas,REDFERN TRAVEL LTD,1898743,285387.59,Travel and hotel costs arising from central booking system used
Department of Health,NHS Blood and Transplant,10/03/2015,TRAVEL,Blood Supply: Blood Donation,TELEPERFORMANCE LIMITED,1892086,162,Travel costs
Department of Health,NHS Blood and Transplant,09/03/2015,PURCHASING CARD SUSPENSE,NBS and ODT All Areas,Royal Bank of Scotland plc,DD,175092.77,Purchasing Card Expenditure
Department of Health,NHS Blood and Transplant,31/03/2015,EARLY RETIREMENT COSTS,Transition,NHS Pensions,2512,44085.06,Capitalised NHSPA costs incurred when redundant employees choose the pension option
Department of Health,NHS Blood and Transplant,30/03/2015,EARLY RETIREMENT COSTS,Blood Supply: Blood Donation,NHS Pensions,2507,30515.87,Capitalised NHSPA costs incurred when redundant employees choose the pension option
Department of Health,NHS Blood and Transplant,31/03/2015,EARLY RETIREMENT COSTS,Blood Supply: Blood Donation,NHS Pensions,2514,62011.33,Capitalised NHSPA costs incurred when redundant employees choose the pension option
Department of Health,NHS Blood and Transplant,11/03/2015,CAPITAL CHARGES CONTROL,NBS and ODT All Areas,DEPARTMENT OF HEALTH,2492,6480000,Payment to DH for capital charges amounts collected from customers through prices
Department of Health,NHS Blood and Transplant,13/03/2015,DIRECT CONSUMABLES,Organ Donation & Transplantation,Cambridge Univ Hosp NHS Foundation Trust,2493,121369.89,Consumable items used primarily during normal day to day operations
Department of Health,NHS Blood and Transplant,13/03/2015,DIRECT CONSUMABLES,Organ Donation & Transplantation,Kings College Hospital NHS Foundation Trust,2493,161077.51,Consumable items used primarily during normal day to day operations
Department of Health,NHS Blood and Transplant,13/03/2015,DIRECT CONSUMABLES,Organ Donation & Transplantation,NHS Lothian,2493,164394.61,Consumable items used primarily during normal day to day operations
Department of Health,NHS Blood and Transplant,13/03/2015,DIRECT CONSUMABLES,Organ Donation & Transplantation,Oxford Radcliffe Hospital NHS Trust,2493,77418.96,Consumable items used primarily during normal day to day operations
Department of Health,NHS Blood and Transplant,13/03/2015,DIRECT CONSUMABLES,Organ Donation & Transplantation,Papworth Hospital NHS Foundation Trust,2493,36414.72,Consumable items used primarily during normal day to day operations
Department of Health,NHS Blood and Transplant,13/03/2015,DIRECT CONSUMABLES,Organ Donation & Transplantation,Royal Brompton And Harefield NHS Foundation Trust,2493,63725.76,Consumable items used primarily during normal day to day operations
Department of Health,NHS Blood and Transplant,13/03/2015,DIRECT CONSUMABLES,Organ Donation & Transplantation,Royal Free Hampstead NHS Trust,2493,66245.49,Consumable items used primarily during normal day to day operations
Department of Health,NHS Blood and Transplant,13/03/2015,DIRECT CONSUMABLES,Organ Donation & Transplantation,Leeds Teaching Hospitals NHS Trust,2493,148133.41,Consumable items used primarily during normal day to day operations
Department of Health,NHS Blood and Transplant,13/03/2015,DIRECT CONSUMABLES,Organ Donation & Transplantation,Newcastle Upon Tyne Hospitals NHS Foundation Trust,2493,105261.26,Consumable items used primarily during normal day to day operations
Department of Health,NHS Blood and Transplant,13/03/2015,DIRECT CONSUMABLES,Organ Donation & Transplantation,University Hospital Of South Manchester NHS Foundation Trust,2493,61657.92,Consumable items used primarily during normal day to day operations
Department of Health,NHS Blood and Transplant,13/03/2015,DIRECT CONSUMABLES,Organ Donation & Transplantation,University Hospital Of South Manchester NHS Foundation Trust,2493,435412.06,Consumable items used primarily during normal day to day operations
Department of Health,NHS Blood and Transplant,20/03/2015,CTS EYE RETRIEVAL COSTS,Organ Donation & Transplantation,Lancashire Teaching Hospitals NHS Foundation Trust,2496,35976.5,Contracts with other NHS bodies for eye retrieval costs
Department of Health,NHS Blood and Transplant,20/03/2015,CTS EYE RETRIEVAL COSTS,Organ Donation & Transplantation,Southampton University Hospitals NHS Trust,2496,27179,Contracts with other NHS bodies for eye retrieval costs
Department of Health,NHS Blood and Transplant,20/03/2015,CTS EYE RETRIEVAL COSTS,Organ Donation & Transplantation,Newcastle Upon Tyne Hospitals NHS Foundation Trust,2496,41902,Contracts with other NHS bodies for eye retrieval costs
Department of Health,NHS Blood and Transplant,20/03/2015,CTS EYE RETRIEVAL COSTS,Organ Donation & Transplantation,Royal Liverpool Broadgreen Hospitals NHS Trust,2496,28947,Contracts with other NHS bodies for eye retrieval costs
Department of Health,NHS Blood and Transplant,24/03/2015,ODT DONOR MANAGEMENT REIMBURSEMENT,Organ Donation & Transplantation,Cambridge Univ Hosp NHS Foundation Trust,2501,31290,Reimbursement to other NHS bodies for organ donation scheme related costs
Department of Health,NHS Blood and Transplant,24/03/2015,ODT DONOR MANAGEMENT REIMBURSEMENT,Organ Donation & Transplantation,Norfolk And Norwich University Hospitals NHS Foundation Trust,2501,27118,Reimbursement to other NHS bodies for organ donation scheme related costs
Department of Health,NHS Blood and Transplant,24/03/2015,ODT DONOR MANAGEMENT REIMBURSEMENT,Organ Donation & Transplantation,St Georges Healthcare NHS Trust,2501,27118,Reimbursement to other NHS bodies for organ donation scheme related costs
Department of Health,NHS Blood and Transplant,24/03/2015,ODT DONOR MANAGEMENT REIMBURSEMENT,Organ Donation & Transplantation,Leeds Teaching Hospitals NHS Trust,2501,25032,Reimbursement to other NHS bodies for organ donation scheme related costs
Department of Health,NHS Blood and Transplant,23/03/2015,ORGAN RETREIVAL CONTRACTS,Organ Donation & Transplantation,Cambridge Univ Hosp NHS Foundation Trust,2502,282094,Contracts with other NHS bodies for organ retrieval teams
Department of Health,NHS Blood and Transplant,23/03/2015,ORGAN RETREIVAL CONTRACTS,Organ Donation & Transplantation,Cardiff and Vale University Health Board,2502,107867,Contracts with other NHS bodies for organ retrieval teams
Department of Health,NHS Blood and Transplant,23/03/2015,ORGAN RETREIVAL CONTRACTS,Organ Donation & Transplantation,Central Manchester University Hospitals NHS Foundation Trust,2502,346326,Contracts with other NHS bodies for organ retrieval teams
Department of Health,NHS Blood and Transplant,23/03/2015,ORGAN RETREIVAL CONTRACTS,Organ Donation & Transplantation,Kings College Hospital NHS Foundation Trust,2502,355258,Contracts with other NHS bodies for organ retrieval teams
Department of Health,NHS Blood and Transplant,23/03/2015,ORGAN RETREIVAL CONTRACTS,Organ Donation & Transplantation,NHS Lothian,2502,808639,Contracts with other NHS bodies for organ retrieval teams
Department of Health,NHS Blood and Transplant,23/03/2015,ORGAN RETREIVAL CONTRACTS,Organ Donation & Transplantation,Oxford Radcliffe Hospital NHS Trust,2502,235383,Contracts with other NHS bodies for organ retrieval teams
Department of Health,NHS Blood and Transplant,23/03/2015,ORGAN RETREIVAL CONTRACTS,Organ Donation & Transplantation,Papworth Hospital NHS Foundation Trust,2502,402689,Contracts with other NHS bodies for organ retrieval teams
Department of Health,NHS Blood and Transplant,23/03/2015,ORGAN RETREIVAL CONTRACTS,Organ Donation & Transplantation,Royal Brompton And Harefield NHS Foundation Trust,2502,408164,Contracts with other NHS bodies for organ retrieval teams
Department of Health,NHS Blood and Transplant,23/03/2015,ORGAN RETREIVAL CONTRACTS,Organ Donation & Transplantation,Royal Free Hampstead NHS Trust,2502,496448,Contracts with other NHS bodies for organ retrieval teams
Department of Health,NHS Blood and Transplant,23/03/2015,ORGAN RETREIVAL CONTRACTS,Organ Donation & Transplantation,Leeds Teaching Hospitals NHS Trust,2502,302412,Contracts with other NHS bodies for organ retrieval teams
Department of Health,NHS Blood and Transplant,23/03/2015,ORGAN RETREIVAL CONTRACTS,Organ Donation & Transplantation,Newcastle Upon Tyne Hospitals NHS Foundation Trust,2502,1033329,Contracts with other NHS bodies for organ retrieval teams
Department of Health,NHS Blood and Transplant,23/03/2015,ORGAN RETREIVAL CONTRACTS,Organ Donation & Transplantation,University Hospital Of South Manchester NHS Foundation Trust,2502,290285,Contracts with other NHS bodies for organ retrieval teams
Department of Health,NHS Blood and Transplant,23/03/2015,ORGAN RETREIVAL CONTRACTS,Organ Donation & Transplantation,University Hospital Of South Manchester NHS Foundation Trust,2502,603595,Contracts with other NHS bodies for organ retrieval teams
